fUSD/lending_fUSD_20260515
["ID","MTS","AMOUNT","RATE_DAILY","PERIOD"]
[422303705,1778806237000,-391.6493,0.00010928,2]
[422303707,1778806237000,-214.95940296,0.00011118,2]
[422303706,1778806237000,-514.7,0.00010989,2]
[422303698,1778806237000,-103.98162442,9.962e-05,2]
[422303695,1778806237000,-272.0,9.24e-05,2]
[422303697,1778806237000,-196.62510369,9.463e-05,2]
[422303704,1778806237000,-5002.12587395,0.00010928,2]
[422303696,1778806237000,-11.70588551,9.463e-05,2]
[422303702,1778806237000,-2754.71456705,0.00010928,2]
[422303703,1778806237000,-534.124359,0.00010928,2]
[422303694,1778806237000,-110.4179251,9.24e-05,2]
[422303701,1778806237000,-255.0,0.00010164,2]
[422303700,1778806237000,-250.0,9.962e-05,2]
[422303715,1778806237000,-500.0,0.00012876,2]
[422303699,1778806237000,-89.01837558,9.962e-05,2]
[422303714,1778806237000,-500.0,0.00012876,2]
[422303729,1778806237000,-500.0,0.00013698,2]
[422303723,1778806237000,-572.3,0.00012924,2]
[422303721,1778806237000,-150.0,0.00012895,2]
[422303720,1778806237000,-2000.0,0.00012895,2]
[422303725,1778806237000,-249.73,0.00013062,2]
[422303726,1778806237000,-152.0,0.00013095,2]
[422303722,1778806237000,-486.69,0.00012902,2]
[422303724,1778806237000,-150.0,0.00013045,2]
[422303719,1778806237000,-9999.99,0.00012893,2]
[422303716,1778806237000,-516.39165759,0.00012876,2]
[422303711,1778806237000,-500.0,0.00012876,2]
[422303712,1778806237000,-500.0,0.00012876,2]
[422303713,1778806237000,-500.0,0.00012876,2]
[422303728,1778806237000,-500.0,0.00013698,2]
[422303727,1778806237000,-352.0,0.00013498,5]
[422303718,1778806237000,-1859.1,0.00012893,2]
[422303717,1778806237000,-150.99,0.00012893,2]
[422303768,1778806238000,-285.87205006,0.000149,2]
[422303762,1778806238000,-171.56515,0.0001485,2]
[422303759,1778806238000,-171.56515,0.0001485,2]
[422303757,1778806238000,-500.0,0.00014828,2]
[422303761,1778806238000,-171.56516,0.0001485,2]
[422303756,1778806238000,-200.0,0.00014802,2]
[422303765,1778806238000,-700.0,0.00014859,2]
[422303760,1778806238000,-171.56515,0.0001485,2]
[422303766,1778806238000,-500.0,0.00014879,2]
[422303764,1778806238000,-245.0,0.00014856,2]
[422303763,1778806238000,-500.0,0.00014853,2]
[422303776,1778806238000,-500.0,0.00014996,2]
[422303767,1778806238000,-200.0,0.00014879,2]
[422303769,1778806238000,-953.24834778,0.000149,2]
[422303774,1778806238000,-500.0,0.00014996,2]
[422303773,1778806238000,-156.0,0.0001499,2]
[422303772,1778806238000,-234.36,0.00014985,2]
[422303771,1778806238000,-823.6497881,0.000149,2]
[422303758,1778806238000,-711.81771295,0.0001485,2]
[422303775,1778806238000,-500.0,0.00014996,2]
[422303777,1778806238000,-151.0,0.00014997,2]
[422303780,1778806238000,-500.0,0.00014999,2]
[422303770,1778806238000,-9847.20372997,0.000149,2]
[422303755,1778806238000,-500.0,0.00014802,2]
[422303744,1778806238000,-2000.0,0.00014507,2]
[422303748,1778806238000,-500.0,0.00014725,2]
[422303733,1778806238000,-200.0,0.00013699,2]
[422303734,1778806238000,-166.66,0.00013699,2]
[422303731,1778806238000,-500.0,0.00013698,2]
[422303732,1778806238000,-2029.01,0.00013699,2]
[422303736,1778806238000,-166.66,0.00013973,2]
[422303738,1778806238000,-166.66,0.0001411,2]
[422303737,1778806238000,-250.0,0.00014,2]
[422303741,1778806238000,-500.0,0.00014297,2]
[422303735,1778806238000,-166.66,0.00013836,2]
[422303730,1778806238000,-500.0,0.00013698,2]
[422303752,1778806238000,-500.0,0.00014726,2]
[422303739,1778806238000,-150.09,0.00014242,2]
[422303753,1778806238000,-500.0,0.00014726,2]
[422303742,1778806238000,-166.66,0.00014384,2]
[422303754,1778806238000,-840.228,0.00014726,2]
[422303778,1778806238000,-500.0,0.00014998,2]
[422303745,1778806238000,-152.0,0.0001453,2]
[422303746,1778806238000,-167.0,0.00014582,2]
[422303747,1778806238000,-500.0,0.00014647,2]
[422303749,1778806238000,-500.0,0.00014726,2]
[422303751,1778806238000,-500.0,0.00014726,2]
[422303750,1778806238000,-500.0,0.00014726,2]
[422303743,1778806238000,-166.88822591,0.00014453,2]
[422303784,1778806238000,-500.0,0.00014999,2]
[422303740,1778806238000,-166.66,0.00014247,2]
[422303783,1778806238000,-294.5758363,0.00014999,2]
[422303804,1778806238000,-500.0,0.00014999,2]
[422303813,1778806238000,-500.0,0.00014999,2]
[422303812,1778806238000,-500.0,0.00014999,2]
[422303811,1778806238000,-500.0,0.00014999,2]
[422303814,1778806238000,-500.0,0.00014999,2]
[422303815,1778806238000,-500.0,0.00014999,2]
[422303816,1778806238000,-500.0,0.00014999,2]
[422303818,1778806238000,-500.0,0.00014999,2]
[422303822,1778806238000,-500.0,0.00014999,2]
[422303824,1778806238000,-500.0,0.00014999,2]
[422303810,1778806238000,-500.0,0.00014999,2]
[422303819,1778806238000,-500.0,0.00014999,2]
[422303820,1778806238000,-500.0,0.00014999,2]
[422303817,1778806238000,-500.0,0.00014999,2]
[422303825,1778806238000,-500.0,0.00014999,2]
[422303827,1778806238000,-500.0,0.00014999,2]
[422303826,1778806238000,-500.0,0.00014999,2]
[422303828,1778806238000,-500.0,0.00014999,2]
[422303832,1778806238000,-1968717.16300757,0.00015,2]
[422303829,1778806238000,-500.0,0.00014999,2]
[422303831,1778806238000,-364.0,0.00015,5]
[422303830,1778806238000,-500.0,0.00014999,2]
[422303823,1778806238000,-500.0,0.00014999,2]
[422303809,1778806238000,-500.0,0.00014999,2]
[422303821,1778806238000,-479.02993701,0.00014999,2]
[422303806,1778806238000,-500.0,0.00014999,2]
[422303807,1778806238000,-500.0,0.00014999,2]
[422303789,1778806238000,-500.0,0.00014999,2]
[422303788,1778806238000,-350.41589838,0.00014999,2]
[422303781,1778806238000,-500.0,0.00014999,2]
[422303785,1778806238000,-500.0,0.00014999,2]
[422303779,1778806238000,-500.0,0.00014999,2]
[422303782,1778806238000,-354.83582311,0.00014999,2]
[422303791,1778806238000,-500.0,0.00014999,2]
[422303801,1778806238000,-500.0,0.00014999,2]
[422303802,1778806238000,-500.0,0.00014999,2]
[422303790,1778806238000,-500.0,0.00014999,2]
[422303793,1778806238000,-500.0,0.00014999,2]
[422303787,1778806238000,-500.0,0.00014999,2]
[422303786,1778806238000,-500.0,0.00014999,2]
[422303798,1778806238000,-500.0,0.00014999,2]
[422303796,1778806238000,-435.81474349,0.00014999,2]
[422303797,1778806238000,-500.0,0.00014999,2]
[422303794,1778806238000,-500.0,0.00014999,2]
[422303799,1778806238000,-500.0,0.00014999,2]
[422303800,1778806238000,-500.0,0.00014999,2]
[422303795,1778806238000,-500.0,0.00014999,2]
[422303803,1778806238000,-500.0,0.00014999,2]
[422303808,1778806238000,-500.0,0.00014999,2]
[422303805,1778806238000,-500.0,0.00014999,2]
[422303792,1778806238000,-500.0,0.00014999,2]
[422303837,1778806239000,-182433.24508403,0.00015,2]
[422303836,1778806239000,-406616.7836364,0.00015,2]
[422303833,1778806239000,-56769.87792943,0.00015,2]
[422303839,1778806240000,-317.893275,0.00015,2]
[422303838,1778806240000,-2207.9953582,0.00015,2]
[422303841,1778806240000,-23921.5,0.00015,2]
[422303840,1778806240000,-622.76941867,0.00015,2]
[422303866,1778806247000,-132679.63970045,0.00015,2]
[422303864,1778806247000,-152.0,0.00013395,2]
[422303863,1778806247000,-9889.505693,9.141e-05,2]
[422303865,1778806247000,-152.0,0.00013395,2]
[422303862,1778806247000,-335.819307,9.141e-05,2]
[422303867,1778806248000,-452797.27078912,0.00015,2]
[422303869,1778806248000,-12583.88474511,0.00015,2]
[422303868,1778806248000,-318.6506024,0.00015,2]
[422303870,1778806248000,-975.68407284,0.00015,2]
[422303871,1778806248000,-1558.86743648,0.00015,2]
[422303873,1778806248000,-88215.71955635,0.00015,2]
[422303872,1778806248000,-2514.51841807,0.00015,2]
[422303896,1778806293000,1093.85407049,9.14e-05,3]
[422303897,1778806441000,500.0,0.00027397,120]
[422303901,1778806577000,157.0,0.000273,120]
[422303902,1778806590000,158.69,0.000273,120]
[422303903,1778806724000,241.98792757,0.00026561,120]
[422303904,1778806850000,154.31,4.294e-05,2]
[422303906,1778806957000,2182.29,8.106e-05,2]
[422303907,1778807009000,282.76,8.102e-05,2]
[422303908,1778807092000,2000.0,8.219e-05,2]
[422303909,1778807156000,167.89,8.26e-05,2]
[422303910,1778807175000,150.71,8e-05,2]
[422303911,1778807183000,4270.8,8e-05,2]
[422303915,1778807201000,1745.44,8e-05,2]
[422303916,1778807215000,14818.16,8e-05,2]
[422303918,1778807304000,4997.1600214,3.85e-05,7]
[422303919,1778807339000,191.38,7.98e-05,2]
[422303920,1778807358000,2841.94,8.219e-05,2]
[422303921,1778807392000,2391.37,8.219e-05,2]
[422303947,1778807431000,-300.0,8.828e-05,2]
[422303945,1778807431000,-200.0,8.755e-05,2]
[422303930,1778807431000,-2620.16,8.419e-05,2]
[422303933,1778807431000,-500.0,8.428e-05,2]
[422303935,1778807431000,-200.0,8.502e-05,2]
[422303928,1778807431000,-154.31,8.419e-05,2]
[422303941,1778807431000,-2038.211125,8.627e-05,2]
[422303939,1778807431000,-200.0,8.586e-05,2]
[422303944,1778807431000,-1200.0,8.753e-05,2]
[422303943,1778807431000,-200.0,8.738e-05,2]
[422303946,1778807431000,-267.0,8.759e-05,2]
[422303926,1778807431000,-188.10217329,8.419e-05,2]
[422303942,1778807431000,-200.0,8.671e-05,2]
[422303948,1778807431000,-200.0,8.839e-05,2]
[422303937,1778807431000,-529.5993,8.538e-05,2]
[422303950,1778807431000,-200.0,8.923e-05,2]
[422303960,1778807431000,-181.12694331,9.039e-05,2]
[422303961,1778807431000,-500.0,9.039e-05,2]
[422303963,1778807431000,-500.0,9.039e-05,2]
[422303962,1778807431000,-500.0,9.039e-05,2]
[422303949,1778807431000,-300.0,8.922e-05,2]
[422303958,1778807431000,-500.0,9.039e-05,2]
[422303959,1778807431000,-500.0,9.039e-05,2]
[422303956,1778807431000,-500.0,9.039e-05,2]
[422303955,1778807431000,-500.0,9.039e-05,2]
[422303953,1778807431000,-150.0,9.038e-05,2]
[422303951,1778807431000,-324.4141,8.956e-05,2]
[422303954,1778807431000,-500.0,9.039e-05,2]
[422303952,1778807431000,-200.0,9.007e-05,2]
[422303957,1778807431000,-500.0,9.039e-05,2]
[422303987,1778807432000,-637.97831737,9.039e-05,2]
[422303995,1778807432000,-500.0,9.039e-05,2]
[422303992,1778807432000,-500.0,9.039e-05,2]
[422303994,1778807432000,-500.0,9.039e-05,2]
[422303988,1778807432000,-500.0,9.039e-05,2]
[422303968,1778807432000,-500.0,9.039e-05,2]
[422303990,1778807432000,-500.0,9.039e-05,2]
[422303997,1778807432000,-500.0,9.039e-05,2]
[422303999,1778807432000,-500.0,9.039e-05,2]
[422304001,1778807432000,-500.0,9.039e-05,2]
[422303991,1778807432000,-500.0,9.039e-05,2]
[422303986,1778807432000,-500.0,9.039e-05,2]
[422303989,1778807432000,-500.0,9.039e-05,2]
[422303976,1778807432000,-500.0,9.039e-05,2]
[422303972,1778807432000,-500.0,9.039e-05,2]
[422303971,1778807432000,-500.0,9.039e-05,2]
[422303978,1778807432000,-500.0,9.039e-05,2]
[422303974,1778807432000,-500.0,9.039e-05,2]
[422303985,1778807432000,-500.0,9.039e-05,2]
[422303980,1778807432000,-500.0,9.039e-05,2]
[422303984,1778807432000,-500.0,9.039e-05,2]
[422303982,1778807432000,-500.0,9.039e-05,2]
[422303967,1778807432000,-500.0,9.039e-05,2]
[422303969,1778807432000,-500.0,9.039e-05,2]
[422303966,1778807432000,-500.0,9.039e-05,2]
[422303965,1778807432000,-500.0,9.039e-05,2]
[422303964,1778807432000,-500.0,9.039e-05,2]
[422303970,1778807432000,-500.0,9.039e-05,2]
[422303973,1778807432000,-500.0,9.039e-05,2]
[422304002,1778807432000,-200.00000001,9.039e-05,2]
[422303993,1778807432000,-500.0,9.039e-05,2]
[422304009,1778807432000,-500.0,9.039e-05,2]
[422304008,1778807432000,-500.0,9.039e-05,2]
[422304031,1778807432000,-609.07999999,9.141e-05,2]
[422304033,1778807432000,-699.20288059,9.141e-05,2]
[422304029,1778807432000,-1254.41808677,9.141e-05,2]
[422304030,1778807432000,-1450.04770829,9.141e-05,2]
[422304032,1778807432000,-2033.70262742,9.141e-05,2]
[422304028,1778807432000,-347607.92985453,9.141e-05,2]
[422304027,1778807432000,-201882.75136219,9.141e-05,2]
[422304026,1778807432000,-181358.18304464,9.141e-05,2]
[422304025,1778807432000,-645.29112887,9.14e-05,2]
[422304021,1778807432000,-500.0,9.14e-05,2]
[422304023,1778807432000,-500.0,9.14e-05,2]
[422304024,1778807432000,-500.0,9.14e-05,2]
[422304022,1778807432000,-206.20308541,9.14e-05,2]
[422304015,1778807432000,-2500.0,9.041e-05,2]
[422304019,1778807432000,-500.0,9.14e-05,2]
[422304020,1778807432000,-298.38507618,9.14e-05,2]
[422304003,1778807432000,-500.0,9.039e-05,2]
[422304007,1778807432000,-500.0,9.039e-05,2]
[422304013,1778807432000,-27713.77541309,9.041e-05,2]
[422304005,1778807432000,-500.0,9.039e-05,2]
[422304011,1778807432000,-1244783.6318,9.04e-05,2]
[422304004,1778807432000,-500.0,9.039e-05,2]
[422304012,1778807432000,-1840.115,9.04e-05,2]
[422304006,1778807432000,-500.0,9.039e-05,2]
[422304014,1778807432000,-4965.24628691,9.041e-05,2]
[422304017,1778807432000,-174.0,9.123e-05,2]
[422304018,1778807432000,-949.33,9.123e-05,2]
[422304016,1778807432000,-200.0,9.092e-05,2]
[422304010,1778807432000,-500.0,9.039e-05,2]
[422304071,1778807438000,-625.4668107,0.00011099,2]
[422304073,1778807438000,-625.4668107,0.00011099,2]
[422304069,1778807438000,-701.04,0.0001103,2]
[422304070,1778807438000,-625.4668107,0.00011099,2]
[422304065,1778807438000,-9630.65172016,0.000109,2]
[422304067,1778807438000,-150.0,0.00010959,2]
[422304066,1778807438000,-433.0,0.00010936,2]
[422304064,1778807438000,-9630.65172016,0.000109,2]
[422304072,1778807438000,-625.4668107,0.00011099,2]
[422304068,1778807438000,-583.77426698,0.00011,2]
[422304074,1778807438000,-2000.0,0.00011301,2]
[422304079,1778807438000,-9630.65172016,0.00011494,2]
[422304077,1778807438000,-644.82569106,0.000114,2]
[422304089,1778807438000,-191.38,0.0001197,2]
[422304091,1778807438000,-191.83825966,0.00011979,2]
[422304087,1778807438000,-219.0,0.00011792,2]
[422304083,1778807438000,-625.4668107,0.00011645,2]
[422304059,1778807438000,-2351.0,0.00010591,2]
[422304096,1778807438000,-999.99,0.00012087,2]
[422304081,1778807438000,-2391.37,0.00011507,2]
[422304085,1778807438000,-1249.0,0.0001165,2]
[422304093,1778807438000,-212.0,0.00012029,2]
[422304075,1778807438000,-276.0,0.00011331,5]
[422304061,1778807438000,-154617.34323733,0.000107,2]
[422304054,1778807438000,-191.83825966,0.0001,2]
[422304058,1778807438000,-701.04,0.00010529,2]
[422304036,1778807438000,-383693.56433558,9.141e-05,2]
[422304037,1778807438000,-7466.89748056,9.158e-05,2]
[422304038,1778807438000,-200.0,9.176e-05,2]
[422304039,1778807438000,-2000.0,9.247e-05,2]
[422304042,1778807438000,-347.56555501,9.261e-05,2]
[422304045,1778807438000,-341.60737978,9.261e-05,2]
[422304048,1778807438000,-214.95940296,9.362e-05,2]
[422304041,1778807438000,-2320.46931121,9.261e-05,2]
[422304050,1778807438000,-1680.0,9.628e-05,2]
[422304046,1778807438000,-504.33320766,9.313e-05,2]
[422304043,1778807438000,-347.19452906,9.261e-05,2]
[422304040,1778807438000,-207.0,9.26e-05,2]
[422304044,1778807438000,-250.0,9.261e-05,2]
[422304047,1778807438000,-208.3309892,9.349e-05,2]
[422304049,1778807438000,-167.89,9.623e-05,2]
[422304051,1778807438000,-255.0,9.941e-05,2]
[422304052,1778807438000,-1436.59522062,9.955e-05,2]
[422304095,1778807438000,-9999.99,0.00012087,2]
[422304053,1778807438000,-191.38,9.975e-05,2]
[422304055,1778807438000,-701.04,0.00010027,2]
[422304056,1778807438000,-2000.0,0.00010274,2]
[422304057,1778807438000,-701.04,0.00010278,2]
[422304062,1778807438000,-701.04,0.00010779,2]
[422304060,1778807438000,-215.30508946,0.000107,2]
[422304097,1778807438000,-8491.87,0.00012087,2]
[422304063,1778807438000,-9630.65172023,0.000109,2]
[422304106,1778807438000,-500.0,0.00012876,2]
[422304127,1778807438000,-1000.0,0.000135,2]
[422304132,1778807438000,-150.0,0.00013618,2]
[422304130,1778807438000,-625.4668107,0.00013598,2]
[422304129,1778807438000,-152.0,0.00013585,2]
[422304128,1778807438000,-150.0,0.00013553,2]
[422304131,1778807438000,-150.0,0.00013613,2]
[422304134,1778807438000,-150.0,0.00013675,2]
[422304133,1778807438000,-150.0,0.00013654,2]
[422304135,1778807438000,-150.0,0.00013675,2]
[422304136,1778807438000,-150.0,0.00013683,2]
[422304145,1778807438000,-200.0,0.00013699,2]
[422304137,1778807438000,-500.0,0.00013698,2]
[422304139,1778807438000,-500.0,0.00013698,2]
[422304140,1778807438000,-500.0,0.00013698,2]
[422304146,1778807438000,-150.0,0.00013737,2]
[422304142,1778807438000,-500.0,0.00013698,2]
[422304141,1778807438000,-500.0,0.00013698,2]
[422304143,1778807438000,-622.0,0.00013698,2]
[422304144,1778807438000,-166.66,0.00013699,2]
[422304147,1778807438000,-150.0,0.00013748,2]
[422304149,1778807438000,-150.0,0.00013821,2]
[422304148,1778807438000,-150.0,0.00013813,2]
[422304098,1778807438000,-1159.5,0.00012087,2]
[422304125,1778807438000,-150.0,0.00013488,2]
[422304126,1778807438000,-346.0,0.00013498,5]
[422304138,1778807438000,-500.0,0.00013698,2]
[422304123,1778807438000,-150.0,0.00013488,2]
[422304102,1778807438000,-625.4668107,0.00012296,2]
[422304124,1778807438000,-150.0,0.00013488,2]
[422304099,1778807438000,-690.8,0.00012087,2]
[422304105,1778807438000,-9630.65172016,0.00012346,2]
[422304103,1778807438000,-2000.0,0.00012329,2]
[422304101,1778807438000,-150.99,0.00012087,2]
[422304109,1778807438000,-500.0,0.00012876,2]
[422304107,1778807438000,-500.0,0.00012876,2]
[422304104,1778807438000,-601.84,0.00012329,2]
[422304100,1778807438000,-9999.99,0.00012087,2]
[422304111,1778807438000,-480.318652,0.00012876,2]
[422304110,1778807438000,-500.0,0.00012876,2]
[422304108,1778807438000,-500.0,0.00012876,2]
[422304113,1778807438000,-500.0,0.00013,2]
[422304112,1778807438000,-625.4668107,0.00012947,2]
[422304115,1778807438000,-5410.10337762,0.0001305,2]
[422304114,1778807438000,-4146.17297631,0.00013,5]
[422304117,1778807438000,-150.0,0.00013488,2]
[422304116,1778807438000,-208.924986,0.00013424,2]
[422304118,1778807438000,-150.0,0.00013488,2]
[422304119,1778807438000,-150.0,0.00013488,2]
[422304122,1778807438000,-150.35634916,0.00013488,2]
[422304121,1778807438000,-150.0,0.00013488,2]
[422304120,1778807438000,-150.0,0.00013488,2]
[422304194,1778807439000,-150.0,0.00014595,2]
[422304190,1778807439000,-150.0,0.00014487,2]
[422304192,1778807439000,-150.0,0.0001453,2]
[422304189,1778807439000,-150.0,0.00014465,2]
[422304187,1778807439000,-150.0,0.00014424,2]
[422304184,1778807439000,-166.66,0.00014384,2]
[422304186,1778807439000,-700.0,0.00014418,3]
[422304185,1778807439000,-150.0,0.000144,2]
[422304179,1778807439000,-625.4668107,0.00014249,2]
[422304180,1778807439000,-150.0,0.0001427,2]
[422304195,1778807439000,-150.0,0.00014612,2]
[422304188,1778807439000,-150.0,0.00014424,2]
[422304191,1778807439000,-150.0,0.00014487,2]
[422304202,1778807439000,-500.0,0.00014656,2]
[422304196,1778807439000,-150.0,0.00014612,2]
[422304198,1778807439000,-150.0,0.00014612,2]
[422304206,1778807439000,-500.0,0.00014656,2]
[422304207,1778807439000,-500.0,0.00014656,2]
[422304208,1778807439000,-500.0,0.00014656,2]
[422304197,1778807439000,-150.0,0.00014612,2]
[422304199,1778807439000,-150.0,0.00014653,2]
[422304201,1778807439000,-500.0,0.00014656,2]
[422304200,1778807439000,-500.0,0.00014656,2]
[422304203,1778807439000,-500.0,0.00014656,2]
[422304205,1778807439000,-500.0,0.00014656,2]
[422304181,1778807439000,-150.0,0.0001432,2]
[422304204,1778807439000,-500.0,0.00014656,2]
[422304193,1778807439000,-500.0,0.0001457,2]
[422304178,1778807439000,-166.66,0.00014247,2]
[422304154,1778807439000,-150.0,0.00013862,2]
[422304177,1778807439000,-2337.16556047,0.00014238,2]
[422304209,1778807439000,-500.0,0.00014656,2]
[422304151,1778807439000,-150.0,0.00013862,2]
[422304150,1778807439000,-166.66,0.00013836,2]
[422304152,1778807439000,-150.0,0.00013862,2]
[422304155,1778807439000,-150.0,0.00013879,2]
[422304156,1778807439000,-150.0,0.00013944,2]
[422304153,1778807439000,-150.0,0.00013862,2]
[422304158,1778807439000,-513.90282975,0.00013987,2]
[422304157,1778807439000,-166.66,0.00013973,2]
[422304159,1778807439000,-150.0,0.00013987,2]
[422304160,1778807439000,-150.0,0.00013987,2]
[422304161,1778807439000,-150.0,0.00014009,2]
[422304163,1778807439000,-150.0,0.0001405,2]
[422304171,1778807439000,-150.0,0.00014237,2]
[422304162,1778807439000,-150.0,0.0001405,2]
[422304164,1778807439000,-150.0,0.00014074,2]
[422304166,1778807439000,-150.0,0.00014112,2]
[422304165,1778807439000,-166.66,0.0001411,2]
[422304167,1778807439000,-150.0,0.00014139,2]
[422304168,1778807439000,-150.0,0.00014154,2]
[422304170,1778807439000,-225.12847183,0.00014212,21]
[422304169,1778807439000,-150.0,0.00014204,2]
[422304172,1778807439000,-150.0,0.00014237,2]
[422304173,1778807439000,-150.0,0.00014237,2]
[422304174,1778807439000,-150.0,0.00014237,2]
[422304175,1778807439000,-150.0,0.00014237,2]
[422304176,1778807439000,-150.0,0.00014237,2]
[422304182,1778807439000,-150.0,0.00014335,2]
[422304214,1778807439000,-500.0,0.00014656,2]
[422304183,1778807439000,-150.0,0.00014362,2]
[422304220,1778807439000,-264.89014969,0.00014656,2]
[422304243,1778807439000,-151.0,0.0001471,2]
[422304244,1778807439000,-500.0,0.0001471,2]
[422304245,1778807439000,-151.0,0.0001471,2]
[422304247,1778807439000,-151.0,0.0001471,2]
[422304249,1778807439000,-151.0,0.0001471,2]
[422304250,1778807439000,-500.0,0.0001471,2]
[422304248,1778807439000,-500.0,0.0001471,2]
[422304251,1778807439000,-151.0,0.0001471,2]
[422304254,1778807439000,-500.0,0.0001471,2]
[422304257,1778807439000,-500.0,0.0001471,2]
[422304255,1778807439000,-500.0,0.0001471,2]
[422304258,1778807439000,-500.0,0.0001471,2]
[422304252,1778807439000,-500.0,0.0001471,2]
[422304240,1778807439000,-500.0,0.0001471,2]
[422304256,1778807439000,-500.0,0.0001471,2]
[422304259,1778807439000,-500.0,0.0001471,2]
[422304263,1778807439000,-500.0,0.0001471,2]
[422304264,1778807439000,-500.0,0.0001471,2]
[422304271,1778807439000,-1000.0,0.0001471,2]
[422304261,1778807439000,-500.0,0.0001471,2]
[422304267,1778807439000,-500.0,0.0001471,2]
[422304262,1778807439000,-500.0,0.0001471,2]
[422304272,1778807439000,-152.0,0.0001471,2]
[422304265,1778807439000,-500.0,0.0001471,2]
[422304269,1778807439000,-194.72792766,0.0001471,2]
[422304270,1778807439000,-152.0,0.0001471,2]
[422304260,1778807439000,-500.0,0.0001471,2]
[422304217,1778807439000,-500.0,0.00014656,2]
[422304253,1778807439000,-500.0,0.0001471,2]
[422304239,1778807439000,-151.0,0.0001471,2]
[422304266,1778807439000,-500.0,0.0001471,2]
[422304268,1778807439000,-500.0,0.0001471,2]
[422304242,1778807439000,-500.0,0.0001471,2]
[422304216,1778807439000,-500.0,0.00014656,2]
[422304218,1778807439000,-500.0,0.00014656,2]
[422304219,1778807439000,-500.0,0.00014656,2]
[422304210,1778807439000,-500.0,0.00014656,2]
[422304211,1778807439000,-500.0,0.00014656,2]
[422304212,1778807439000,-500.0,0.00014656,2]
[422304213,1778807439000,-500.0,0.00014656,2]
[422304221,1778807439000,-150.0,0.00014661,2]
[422304223,1778807439000,-578.20924308,0.0001471,2]
[422304233,1778807439000,-151.0,0.0001471,2]
[422304232,1778807439000,-151.0,0.0001471,2]
[422304222,1778807439000,-500.0,0.00014686,2]
[422304231,1778807439000,-151.0,0.0001471,2]
[422304215,1778807439000,-500.0,0.00014656,2]
[422304228,1778807439000,-670.58624095,0.0001471,2]
[422304241,1778807439000,-151.0,0.0001471,2]
[422304238,1778807439000,-500.0,0.0001471,2]
[422304246,1778807439000,-500.0,0.0001471,2]
[422304235,1778807439000,-151.0,0.0001471,2]
[422304225,1778807439000,-151.0,0.0001471,2]
[422304237,1778807439000,-151.0,0.0001471,2]
[422304236,1778807439000,-500.0,0.0001471,2]
[422304230,1778807439000,-151.0,0.0001471,2]
[422304226,1778807439000,-200.0,0.0001471,2]
[422304229,1778807439000,-1328.27659266,0.0001471,2]
[422304227,1778807439000,-194.72792766,0.0001471,2]
[422304224,1778807439000,-203.2338541,0.0001471,2]
[422304234,1778807439000,-500.0,0.0001471,2]
[422304313,1778807440000,-304.02480851,0.0001471,2]
[422304314,1778807440000,-152.0,0.0001471,2]
[422304309,1778807440000,-293.17725025,0.0001471,2]
[422304316,1778807440000,-1000.0,0.0001471,2]
[422304305,1778807440000,-282.71673119,0.0001471,2]
[422304311,1778807440000,-151.0,0.0001471,2]
[422304310,1778807440000,-152.0,0.0001471,2]
[422304308,1778807440000,-151.0,0.0001471,2]